[Event "*** Titled Tuesday Blitz"]
[Site "Chess.com"]
[Date "2020.12.01"]
[Round "10"]
[White "enriquebutti"]
[Black "Cambek64"]
[Result "0-1"]
[WhiteElo "2073"]
[BlackElo "2292"]
[TimeControl "180+1"]
[EndTime "11:53:23 PST"]
[Termination "Cambek64 won by resignation"]

1. d4 {[%clk 0:02:59.7]} 1... c5 {[%clk 0:02:59.8]} 2. e3 {[%clk 0:02:59.1]}
2... cxd4 {[%clk 0:02:59.2]} 3. exd4 {[%clk 0:02:58.7]} 3... d5 {[%clk
0:02:59.9]} 4. Nf3 {[%clk 0:02:58.1]} 4... Nc6 {[%clk 0:03:00.5]} 5. c3 {[%clk
0:02:57]} 5... Bg4 {[%clk 0:03:00]} 6. h3 {[%clk 0:02:56.3]} 6... Bxf3 {[%clk
0:02:59.8]} 7. Qxf3 {[%clk 0:02:55.7]} 7... e6 {[%clk 0:03:00.5]} 8. Bd3 {[%clk
0:02:53.3]} 8... g6 {[%clk 0:03:00.1]} 9. h4 {[%clk 0:02:52]} 9... Bg7 {[%clk
0:03:00.6]} 10. g4 {[%clk 0:02:45.3]} 10... h5 {[%clk 0:02:59.9]} 11. g5 {[%clk
0:02:43.6]} 11... Nge7 {[%clk 0:03:00.4]} 12. Bf4 {[%clk 0:02:40.4]} 12... O-O
{[%clk 0:03:00.3]} 13. Nd2 {[%clk 0:02:39.8]} 13... Nc8 {[%clk 0:02:59.2]} 14.
Qg3 {[%clk 0:02:38.7]} 14... Re8 {[%clk 0:02:58.1]} 15. O-O {[%clk 0:02:37.1]}
15... Bf8 {[%clk 0:02:58.6]} 16. Nf3 {[%clk 0:02:35.6]} 16... Bd6 {[%clk
0:02:54.5]} 17. Ne5 {[%clk 0:02:29]} 17... Nxe5 {[%clk 0:02:52.7]} 18. Bxe5
{[%clk 0:02:28.7]} 18... Bxe5 {[%clk 0:02:52.6]} 19. Qxe5 {[%clk 0:02:24.3]}
19... Qd6 {[%clk 0:02:50.6]} 20. Rae1 {[%clk 0:02:21.7]} 20... Qxe5 {[%clk
0:02:50.1]} 21. Rxe5 {[%clk 0:02:21.2]} 21... Ne7 {[%clk 0:02:50.1]} 22. Rfe1
{[%clk 0:02:16]} 22... Nc6 {[%clk 0:02:49.1]} 23. R5e3 {[%clk 0:02:14.8]} 23...
a6 {[%clk 0:02:49.5]} 24. f4 {[%clk 0:02:12.2]} 24... Red8 {[%clk 0:02:47.9]}
25. Rf1 {[%clk 0:02:02.3]} 25... b5 {[%clk 0:02:47.9]} 26. a3 {[%clk 0:01:59]}
26... Rdb8 {[%clk 0:02:42.7]} 27. Bxg6 {[%clk 0:01:54.5]} 27... fxg6 {[%clk
0:02:40.7]} 28. Rxe6 {[%clk 0:01:54.1]} 28... Nd8 {[%clk 0:02:35.3]} 29. Rxg6+
{[%clk 0:01:53.5]} 29... Kf7 {[%clk 0:02:28.7]} 30. Rd6 {[%clk 0:01:51.5]} 30...
Rb7 {[%clk 0:02:17]} 31. Rxd5 {[%clk 0:01:44.6]} 31... Re7 {[%clk 0:02:17.4]}
32. Re5 {[%clk 0:01:44.4]} 32... Rc8 {[%clk 0:02:12.7]} 33. f5 {[%clk
0:01:37.1]} 33... Rxe5 {[%clk 0:02:12.9]} 34. dxe5 {[%clk 0:01:36.7]} 34... Rc4
{[%clk 0:02:13.4]} 35. g6+ {[%clk 0:01:30.1]} 35... Ke8 {[%clk 0:02:10.5]} 36.
f6 {[%clk 0:01:25.8]} 36... Rg4+ {[%clk 0:02:10]} 37. Kf2 {[%clk 0:01:25.1]}
37... Rxg6 {[%clk 0:02:09.5]} 38. Rg1 {[%clk 0:01:24.6]} 38... Rxg1 {[%clk
0:02:05.3]} 39. Kxg1 {[%clk 0:01:24.5]} 39... Kf7 {[%clk 0:02:05.7]} 40. Kf2
{[%clk 0:01:21.7]} 40... Nc6 {[%clk 0:02:04.9]} 41. Ke3 {[%clk 0:01:19.4]} 41...
Nxe5 {[%clk 0:02:05.3]} 42. Kd4 {[%clk 0:01:18.2]} 42... Nc4 {[%clk 0:01:57.9]}
43. a4 {[%clk 0:01:07.2]} 43... Nxb2 {[%clk 0:01:55.5]} 44. axb5 {[%clk
0:01:06.7]} 44... axb5 {[%clk 0:01:55.9]} 45. Kc5 {[%clk 0:01:06.6]} 45... Kxf6
{[%clk 0:01:53.7]} 46. Kxb5 {[%clk 0:01:06.3]} 46... Kf5 {[%clk 0:01:53.7]} 47.
Kb4 {[%clk 0:01:02]} 47... Kg4 {[%clk 0:01:54.1]} 48. Kb3 {[%clk 0:01:01.9]}
48... Nd3 {[%clk 0:01:54.6]} 49. c4 {[%clk 0:01:01.5]} 49... Kxh4 {[%clk
0:01:52.8]} 50. Kc3 {[%clk 0:01:01.3]} 50... Nc5 {[%clk 0:01:53.3]} 51. Kb4
{[%clk 0:01:00.8]} 51... Ne6 {[%clk 0:01:51.1]} 0-1

[Event "*** Titled Tuesday Blitz"]
[Site "Chess.com"]
[Date "2020.12.01"]
[Round "10"]
[White "FearNoEvil12"]
[Black "Nemsko"]
[Result "1-0"]
[WhiteElo "2197"]
[BlackElo "2368"]
[TimeControl "180+1"]
[EndTime "11:53:32 PST"]
[Termination "FearNoEvil12 won on time"]

1. e4 {[%clk 0:03:00.9]} 1... e5 {[%clk 0:02:56.6]} 2. d4 {[%clk 0:03:00.8]}
2... exd4 {[%clk 0:02:53.4]} 3. Bc4 {[%clk 0:03:01.3]} 3... Nc6 {[%clk
0:02:47.2]} 4. Nf3 {[%clk 0:03:01.6]} 4... Nf6 {[%clk 0:02:46.8]} 5. e5 {[%clk
0:03:01.6]} 5... d5 {[%clk 0:02:45.4]} 6. Bb5 {[%clk 0:03:02.1]} 6... Ne4 {[%clk
0:02:44.1]} 7. Nxd4 {[%clk 0:03:02.7]} 7... Bd7 {[%clk 0:02:43.6]} 8. Bxc6
{[%clk 0:03:03.2]} 8... bxc6 {[%clk 0:02:42.5]} 9. O-O {[%clk 0:03:03.8]} 9...
c5 {[%clk 0:02:33.6]} 10. Ne2 {[%clk 0:02:59.3]} 10... Bc6 {[%clk 0:02:27.4]}
11. f3 {[%clk 0:02:57.9]} 11... Ng5 {[%clk 0:02:24.6]} 12. Ng3 {[%clk
0:02:54.5]} 12... Be7 {[%clk 0:02:20.4]} 13. f4 {[%clk 0:02:52.2]} 13... Ne4
{[%clk 0:02:19.5]} 14. Nxe4 {[%clk 0:02:51.1]} 14... dxe4 {[%clk 0:02:20.4]} 15.
Qe2 {[%clk 0:02:49]} 15... O-O {[%clk 0:02:14.7]} 16. Nc3 {[%clk 0:02:48]} 16...
f5 {[%clk 0:01:44.8]} 17. Be3 {[%clk 0:02:39.5]} 17... Qe8 {[%clk 0:01:31.6]}
18. Rad1 {[%clk 0:02:37.3]} 18... Qf7 {[%clk 0:01:28.5]} 19. b3 {[%clk
0:02:35.6]} 19... Rfd8 {[%clk 0:01:27.1]} 20. Qa6 {[%clk 0:02:30.8]} 20... Qe6
{[%clk 0:01:08.9]} 21. Qa5 {[%clk 0:02:29.3]} 21... c4 {[%clk 0:01:03.9]} 22. b4
{[%clk 0:02:15.8]} 22... Rxd1 {[%clk 0:00:45.6]} 23. Rxd1 {[%clk 0:02:14.3]}
23... Rd8 {[%clk 0:00:46.1]} 24. Rxd8+ {[%clk 0:02:13.4]} 24... Bxd8 {[%clk
0:00:47]} 25. b5 {[%clk 0:02:04.6]} 25... Be8 {[%clk 0:00:27.2]} 26. Qxa7 {[%clk
0:02:00.5]} 26... Qd7 {[%clk 0:00:22]} 27. Qd4 {[%clk 0:01:59.5]} 27... Qxd4
{[%clk 0:00:20.5]} 28. Bxd4 {[%clk 0:01:59.4]} 28... Kf7 {[%clk 0:00:20.2]} 29.
a4 {[%clk 0:01:58.4]} 29... c6 {[%clk 0:00:13.9]} 30. b6 {[%clk 0:01:56]} 30...
Bd7 {[%clk 0:00:12.4]} 31. a5 {[%clk 0:01:55.3]} 31... Bc8 {[%clk 0:00:12.5]}
32. Kf2 {[%clk 0:01:51.8]} 32... Be7 {[%clk 0:00:10.9]} 33. Na4 {[%clk
0:01:46.8]} 33... Bb4 {[%clk 0:00:08.7]} 34. Bc3 {[%clk 0:01:45.9]} 34... c5
{[%clk 0:00:07.5]} 35. Ke2 {[%clk 0:01:43.1]} 35... Ke6 {[%clk 0:00:04.7]} 36.
Kd2 {[%clk 0:01:42.8]} 36... Kd5 {[%clk 0:00:03.3]} 37. Nb2 {[%clk 0:01:34.8]}
37... Ba6 {[%clk 0:00:02.2]} 38. Nd1 {[%clk 0:01:33.4]} 1-0

[Event "*** Titled Tuesday Blitz"]
[Site "Chess.com"]
[Date "2020.12.01"]
[Round "10"]
[White "banane_verte"]
[Black "elohunter1999"]
[Result "0-1"]
[WhiteElo "2496"]
[BlackElo "2584"]
[TimeControl "180+1"]
[EndTime "11:53:36 PST"]
[Termination "elohunter1999 won by resignation"]

1. e4 {[%clk 0:03:00.9]} 1... c5 {[%clk 0:02:58.9]} 2. Nc3 {[%clk 0:03:01]} 2...
Nc6 {[%clk 0:02:58]} 3. Bb5 {[%clk 0:03:01.5]} 3... Nd4 {[%clk 0:02:57.4]} 4.
Nf3 {[%clk 0:03:02]} 4... a6 {[%clk 0:02:54.3]} 5. Bd3 {[%clk 0:03:01.2]} 5...
g6 {[%clk 0:02:47.8]} 6. Nxd4 {[%clk 0:03:00.4]} 6... cxd4 {[%clk 0:02:48.7]} 7.
Ne2 {[%clk 0:03:01.2]} 7... Bg7 {[%clk 0:02:48.6]} 8. O-O {[%clk 0:03:01.6]}
8... d5 {[%clk 0:02:45.9]} 9. c3 {[%clk 0:02:36.6]} 9... dxe4 {[%clk 0:02:40.1]}
10. Bxe4 {[%clk 0:02:37.5]} 10... Nf6 {[%clk 0:02:30.9]} 11. Bf3 {[%clk
0:02:34.4]} 11... e5 {[%clk 0:02:25.7]} 12. cxd4 {[%clk 0:02:30.9]} 12... e4
{[%clk 0:02:25]} 13. Nc3 {[%clk 0:02:07.6]} 13... exf3 {[%clk 0:02:23.4]} 14.
Qxf3 {[%clk 0:02:08.5]} 14... O-O {[%clk 0:02:20.7]} 15. d5 {[%clk 0:02:04.5]}
15... b5 {[%clk 0:02:16.4]} 16. d6 {[%clk 0:01:49.1]} 16... Ra7 {[%clk
0:02:09.4]} 17. d4 {[%clk 0:01:44]} 17... Qxd6 {[%clk 0:02:07.6]} 18. Be3 {[%clk
0:01:43.6]} 18... Bg4 {[%clk 0:02:03.8]} 19. Qg3 {[%clk 0:01:40.3]} 19... Qxg3
{[%clk 0:02:03.8]} 20. hxg3 {[%clk 0:01:41.2]} 20... Rd7 {[%clk 0:02:03.4]} 21.
b4 {[%clk 0:01:38.6]} 21... Rc8 {[%clk 0:02:00.2]} 22. Rfc1 {[%clk 0:01:38.9]}
22... Rc4 {[%clk 0:02:00.1]} 23. a4 {[%clk 0:01:36.6]} 23... h5 {[%clk
0:01:43.3]} 24. axb5 {[%clk 0:01:35.4]} 24... axb5 {[%clk 0:01:40.3]} 25. Rab1
{[%clk 0:01:26.5]} 25... Rdc7 {[%clk 0:01:37.3]} 26. Nxb5 {[%clk 0:01:24.9]}
26... Rxc1+ {[%clk 0:01:33]} 27. Bxc1 {[%clk 0:01:23.7]} 27... Rc4 {[%clk
0:01:23.5]} 28. Be3 {[%clk 0:01:14.4]} 28... Nd5 {[%clk 0:01:21.4]} 29. Nd6
{[%clk 0:00:51.9]} 29... Rxb4 {[%clk 0:01:19.5]} 30. Ra1 {[%clk 0:00:52.5]}
30... Bxd4 {[%clk 0:01:12.2]} 31. Bh6 {[%clk 0:00:34.9]} 31... Bxa1 {[%clk
0:01:10.4]} 0-1

[Event "*** Titled Tuesday Blitz"]
[Site "Chess.com"]
[Date "2020.12.01"]
[Round "10"]
[White "Enriquack"]
[Black "Luklei18"]
[Result "0-1"]
[WhiteElo "2289"]
[BlackElo "2432"]
[TimeControl "180+1"]
[EndTime "11:53:39 PST"]
[Termination "Luklei18 won by resignation"]

1. e4 {[%clk 0:03:00.9]} 1... d6 {[%clk 0:02:58]} 2. d4 {[%clk 0:03:00.7]} 2...
Nf6 {[%clk 0:02:58.6]} 3. Nc3 {[%clk 0:03:00.2]} 3... g6 {[%clk 0:02:59.2]} 4.
Nf3 {[%clk 0:02:52.1]} 4... Bg7 {[%clk 0:02:59.2]} 5. h3 {[%clk 0:02:51.2]} 5...
O-O {[%clk 0:02:58.1]} 6. Be2 {[%clk 0:02:51.7]} 6... c6 {[%clk 0:02:52.9]} 7.
a4 {[%clk 0:02:50.9]} 7... Qc7 {[%clk 0:02:48.3]} 8. Be3 {[%clk 0:02:46.9]} 8...
e5 {[%clk 0:02:47.2]} 9. dxe5 {[%clk 0:02:43.3]} 9... dxe5 {[%clk 0:02:47.1]}
10. Qc1 {[%clk 0:02:43.4]} 10... a5 {[%clk 0:02:42]} 11. Nd2 {[%clk 0:02:40]}
11... Nbd7 {[%clk 0:02:34.5]} 12. Nc4 {[%clk 0:02:37]} 12... Re8 {[%clk
0:02:31.2]} 13. O-O {[%clk 0:02:31.7]} 13... Bf8 {[%clk 0:02:31]} 14. Rd1 {[%clk
0:02:30]} 14... Nc5 {[%clk 0:02:26.8]} 15. Bf3 {[%clk 0:01:42.5]} 15... Be6
{[%clk 0:02:20.3]} 16. Bxc5 {[%clk 0:01:27.4]} 16... Bxc5 {[%clk 0:02:16.7]} 17.
Ne3 {[%clk 0:01:27.7]} 17... Rad8 {[%clk 0:02:12.3]} 18. Ng4 {[%clk 0:01:26.5]}
18... Nxg4 {[%clk 0:02:04.4]} 19. hxg4 {[%clk 0:01:26.1]} 19... Qb6 {[%clk
0:01:59.9]} 20. Qg5 {[%clk 0:01:12.1]} 20... Rxd1+ {[%clk 0:01:47.1]} 21. Rxd1
{[%clk 0:01:11.5]} 21... Qxb2 {[%clk 0:01:45.6]} 22. Qxe5 {[%clk 0:00:52.6]}
22... Bb4 {[%clk 0:01:40.9]} 23. Rd3 {[%clk 0:00:49.4]} 23... Qxc2 {[%clk
0:01:35.2]} 24. Qd4 {[%clk 0:00:17.2]} 24... Bf8 {[%clk 0:01:23.5]} 25. e5
{[%clk 0:00:15.2]} 25... Bg7 {[%clk 0:01:19.8]} 26. Re3 {[%clk 0:00:11.5]} 26...
Qc1+ {[%clk 0:01:13]} 27. Kh2 {[%clk 0:00:11.5]} 27... Bh6 {[%clk 0:01:08.4]}
28. Rd3 {[%clk 0:00:10.7]} 28... Qf4+ {[%clk 0:01:05.9]} 29. Qxf4 {[%clk
0:00:11]} 29... Bxf4+ {[%clk 0:01:06.8]} 30. g3 {[%clk 0:00:11.9]} 30... Bxe5
{[%clk 0:01:07.4]} 0-1

[Event "*** Titled Tuesday Blitz"]
[Site "Chess.com"]
[Date "2020.12.01"]
[Round "10"]
[White "SergeiAza"]
[Black "PavelShkapenko"]
[Result "1-0"]
[WhiteElo "2832"]
[BlackElo "2692"]
[TimeControl "180+1"]
[EndTime "11:53:44 PST"]
[Termination "SergeiAza won by resignation"]

1. e4 {[%clk 0:03:00.9]} 1... e5 {[%clk 0:02:57.5]} 2. Nf3 {[%clk 0:03:00.8]}
2... Nc6 {[%clk 0:02:57.5]} 3. Bb5 {[%clk 0:03:01]} 3... Bc5 {[%clk 0:02:57.1]}
4. O-O {[%clk 0:02:59.2]} 4... d6 {[%clk 0:02:56.3]} 5. Bxc6+ {[%clk 0:02:44.5]}
5... bxc6 {[%clk 0:02:55.7]} 6. d4 {[%clk 0:02:45.4]} 6... exd4 {[%clk
0:02:55.6]} 7. Nxd4 {[%clk 0:02:46]} 7... Ne7 {[%clk 0:02:55.8]} 8. Be3 {[%clk
0:02:33]} 8... O-O {[%clk 0:02:53.3]} 9. Nc3 {[%clk 0:02:33.5]} 9... Bb6 {[%clk
0:02:46.2]} 10. Qd2 {[%clk 0:02:32.8]} 10... Bxd4 {[%clk 0:02:25.9]} 11. Bxd4
{[%clk 0:02:31.4]} 11... c5 {[%clk 0:02:26.4]} 12. Be3 {[%clk 0:02:31]} 12...
Be6 {[%clk 0:02:25.6]} 13. Rad1 {[%clk 0:02:26.8]} 13... Qc8 {[%clk 0:02:09.5]}
14. Rfe1 {[%clk 0:02:14.8]} 14... Qb7 {[%clk 0:02:05.8]} 15. b3 {[%clk 0:02:13]}
15... f6 {[%clk 0:02:02.1]} 16. f3 {[%clk 0:02:09.4]} 16... Rad8 {[%clk
0:01:55.9]} 17. Qf2 {[%clk 0:02:08.4]} 17... Kh8 {[%clk 0:01:52]} 18. Ne2 {[%clk
0:02:07.6]} 18... Ng6 {[%clk 0:01:45.8]} 19. c4 {[%clk 0:02:03.3]} 19... f5
{[%clk 0:01:43.7]} 20. exf5 {[%clk 0:01:53.8]} 20... Bxf5 {[%clk 0:01:43.5]} 21.
Nc3 {[%clk 0:01:49.5]} 21... Ne5 {[%clk 0:01:34.9]} 22. Qg3 {[%clk 0:01:38.4]}
22... Rde8 {[%clk 0:01:01.6]} 23. Bxc5 {[%clk 0:01:34.2]} 23... Nxf3+ {[%clk
0:00:40.2]} 24. Qxf3 {[%clk 0:01:34]} 24... Qxf3 {[%clk 0:00:39.2]} 25. gxf3
{[%clk 0:01:34.6]} 25... dxc5 {[%clk 0:00:39.4]} 26. Rxe8 {[%clk 0:01:30.3]}
26... Rxe8 {[%clk 0:00:39]} 27. Kf2 {[%clk 0:01:30.8]} 27... h6 {[%clk 0:00:32]}
28. Rd5 {[%clk 0:01:21.7]} 28... Rf8 {[%clk 0:00:32.2]} 29. Kg3 {[%clk
0:01:20.3]} 29... Rf7 {[%clk 0:00:29.9]} 30. Rxc5 {[%clk 0:01:19.7]} 30... Bc8
{[%clk 0:00:28.2]} 31. Nd5 {[%clk 0:01:17.5]} 31... Bb7 {[%clk 0:00:28.4]} 32.
Rxc7 {[%clk 0:01:13.6]} 32... Bxd5 {[%clk 0:00:28.4]} 33. Rc8+ {[%clk
0:01:14.1]} 33... Kh7 {[%clk 0:00:28.6]} 34. cxd5 {[%clk 0:01:14.6]} 34... Rd7
{[%clk 0:00:29.1]} 35. Rc5 {[%clk 0:01:13]} 35... Kg6 {[%clk 0:00:29.4]} 36. Kf4
{[%clk 0:01:13.3]} 36... Kf6 {[%clk 0:00:29.7]} 37. Rc6+ {[%clk 0:01:11.3]}
37... Kf7 {[%clk 0:00:29.6]} 38. Ke5 {[%clk 0:01:07.9]} 1-0

[Event "*** Titled Tuesday Blitz"]
[Site "Chess.com"]
[Date "2020.12.01"]
[Round "10"]
[White "vova-79"]
[Black "politeplayer"]
[Result "1-0"]
[WhiteElo "2458"]
[BlackElo "2249"]
[TimeControl "180+1"]
[EndTime "11:53:49 PST"]
[Termination "vova-79 won by resignation"]

1. d4 {[%clk 0:03:00.9]} 1... Nf6 {[%clk 0:02:59.1]} 2. c4 {[%clk 0:03:00.1]}
2... c5 {[%clk 0:02:59.1]} 3. Nf3 {[%clk 0:02:59]} 3... cxd4 {[%clk 0:02:56.4]}
4. Nxd4 {[%clk 0:02:59.9]} 4... g6 {[%clk 0:02:56.7]} 5. Nc3 {[%clk 0:02:58.9]}
5... Bg7 {[%clk 0:02:57.1]} 6. g3 {[%clk 0:02:59.4]} 6... O-O {[%clk 0:02:57.4]}
7. Bg2 {[%clk 0:02:59.8]} 7... Nc6 {[%clk 0:02:57.8]} 8. O-O {[%clk 0:02:59.8]}
8... Qa5 {[%clk 0:02:58.2]} 9. Nb3 {[%clk 0:02:58.3]} 9... Qh5 {[%clk
0:02:57.4]} 10. e4 {[%clk 0:02:57.5]} 10... d6 {[%clk 0:02:42.4]} 11. Qxh5
{[%clk 0:02:48.6]} 11... gxh5 {[%clk 0:02:42.3]} 12. c5 {[%clk 0:02:49.5]} 12...
Be6 {[%clk 0:02:30.5]} 13. cxd6 {[%clk 0:02:46.4]} 13... exd6 {[%clk 0:02:30.9]}
14. Bf4 {[%clk 0:02:44.8]} 14... Bxb3 {[%clk 0:02:25]} 15. axb3 {[%clk
0:02:43.5]} 15... Nd4 {[%clk 0:02:25.3]} 16. Bxd6 {[%clk 0:02:29.6]} 16... Rfd8
{[%clk 0:02:18.6]} 17. e5 {[%clk 0:02:29]} 17... Ng4 {[%clk 0:02:00]} 18. Bxb7
{[%clk 0:02:25.1]} 18... Rab8 {[%clk 0:01:36.5]} 19. Bxb8 {[%clk 0:02:23.2]}
19... Rxb8 {[%clk 0:01:37]} 20. Rxa7 {[%clk 0:02:21.3]} 20... Bxe5 {[%clk
0:01:25]} 21. Ra8 {[%clk 0:02:17.8]} 21... Rxa8 {[%clk 0:01:21.7]} 22. Bxa8
{[%clk 0:02:18.7]} 22... Nxb3 {[%clk 0:01:16.6]} 23. Bd5 {[%clk 0:02:06.1]}
23... Nd4 {[%clk 0:01:13.8]} 24. Kg2 {[%clk 0:01:58.4]} 24... h4 {[%clk
0:01:12]} 25. h3 {[%clk 0:01:48.4]} 25... Nf6 {[%clk 0:01:04.9]} 26. g4 {[%clk
0:01:40.9]} 26... h5 {[%clk 0:00:54.4]} 27. f4 {[%clk 0:01:33]} 27... Bd6 {[%clk
0:00:43.5]} 28. g5 {[%clk 0:01:31.9]} 28... Nxd5 {[%clk 0:00:36.2]} 29. Nxd5
{[%clk 0:01:32.8]} 29... Kg7 {[%clk 0:00:31]} 30. Rd1 {[%clk 0:01:25]} 30... Nf5
{[%clk 0:00:30.2]} 31. Kf3 {[%clk 0:01:23.2]} 31... Bc5 {[%clk 0:00:23.8]} 32.
b4 {[%clk 0:01:20.5]} 32... Bd4 {[%clk 0:00:20.3]} 33. Ke4 {[%clk 0:01:17]}
33... Kg6 {[%clk 0:00:14.7]} 34. Rxd4 {[%clk 0:01:11.9]} 1-0

[Event "*** Titled Tuesday Blitz"]
[Site "Chess.com"]
[Date "2020.12.01"]
[Round "10"]
[White "Natalya_Buksa"]
[Black "karinachess1"]
[Result "0-1"]
[WhiteElo "2566"]
[BlackElo "2510"]
[TimeControl "180+1"]
[EndTime "11:53:51 PST"]
[Termination "karinachess1 won by resignation"]

1. d4 {[%clk 0:03:00.9]} 1... Nf6 {[%clk 0:02:58.6]} 2. Nc3 {[%clk 0:03:01.4]}
2... d5 {[%clk 0:02:58.5]} 3. Bf4 {[%clk 0:03:01.8]} 3... g6 {[%clk 0:02:58.5]}
4. e3 {[%clk 0:03:02]} 4... Bg7 {[%clk 0:02:58.4]} 5. Nf3 {[%clk 0:03:02.2]}
5... O-O {[%clk 0:02:56]} 6. h4 {[%clk 0:03:02.4]} 6... h5 {[%clk 0:02:55.5]} 7.
Ne5 {[%clk 0:03:00.5]} 7... c5 {[%clk 0:02:51.2]} 8. Qd2 {[%clk 0:03:00.3]} 8...
Nc6 {[%clk 0:02:46]} 9. Be2 {[%clk 0:02:59.8]} 9... cxd4 {[%clk 0:02:36.6]} 10.
exd4 {[%clk 0:02:59.7]} 10... Bf5 {[%clk 0:02:26.5]} 11. Nxc6 {[%clk 0:02:55.7]}
11... bxc6 {[%clk 0:02:26.1]} 12. Be5 {[%clk 0:02:55.9]} 12... c5 {[%clk
0:02:02]} 13. O-O {[%clk 0:02:53.2]} 13... cxd4 {[%clk 0:01:58.2]} 14. Qxd4
{[%clk 0:02:52.9]} 14... Bxc2 {[%clk 0:01:56.3]} 15. Rac1 {[%clk 0:02:39.5]}
15... Bf5 {[%clk 0:01:56.3]} 16. Rfd1 {[%clk 0:02:39.5]} 16... Qb6 {[%clk
0:01:40.4]} 17. Nxd5 {[%clk 0:02:28.1]} 17... Nxd5 {[%clk 0:01:25.8]} 18. Qxd5
{[%clk 0:02:27.8]} 18... Rad8 {[%clk 0:01:18.3]} 19. Qc4 {[%clk 0:01:56.1]}
19... Bxe5 {[%clk 0:01:12.8]} 20. Bf3 {[%clk 0:01:47.4]} 20... Rxd1+ {[%clk
0:01:06.7]} 21. Rxd1 {[%clk 0:01:47.2]} 21... Rd8 {[%clk 0:01:05.6]} 22. Rxd8+
{[%clk 0:01:11.5]} 22... Qxd8 {[%clk 0:01:05.2]} 23. b4 {[%clk 0:01:10.5]} 23...
Qd4 {[%clk 0:01:01.7]} 24. Qc1 {[%clk 0:01:07.2]} 24... Qxb4 {[%clk 0:00:53.6]}
25. g3 {[%clk 0:01:06.3]} 25... Qc3 {[%clk 0:00:48.7]} 26. Qd1 {[%clk
0:00:50.3]} 26... Qa1 {[%clk 0:00:47.1]} 27. Kg2 {[%clk 0:00:46.3]} 27... Qxd1
{[%clk 0:00:43.2]} 28. Bxd1 {[%clk 0:00:47.2]} 28... Be4+ {[%clk 0:00:42.8]} 29.
f3 {[%clk 0:00:47]} 29... Bd5 {[%clk 0:00:43.1]} 30. a4 {[%clk 0:00:47.2]} 30...
a5 {[%clk 0:00:42.1]} 31. g4 {[%clk 0:00:47]} 31... hxg4 {[%clk 0:00:41.9]} 32.
Kf2 {[%clk 0:00:45.5]} 32... Bxf3 {[%clk 0:00:41.1]} 33. Bc2 {[%clk 0:00:45.1]}
33... Bc6 {[%clk 0:00:40.6]} 34. Bb3 {[%clk 0:00:43.3]} 34... g3+ {[%clk
0:00:40.8]} 35. Kg1 {[%clk 0:00:43.4]} 35... g2 {[%clk 0:00:40.2]} 0-1

[Event "*** Titled Tuesday Blitz"]
[Site "Chess.com"]
[Date "2020.12.01"]
[Round "10"]
[White "vovachesss"]
[Black "Nadtkins"]
[Result "0-1"]
[WhiteElo "2608"]
[BlackElo "2527"]
[TimeControl "180+1"]
[EndTime "11:53:55 PST"]
[Termination "Nadtkins won by resignation"]

1. a3 {[%clk 0:03:00]} 1... g6 {[%clk 0:02:57.7]} 2. h3 {[%clk 0:02:59.1]} 2...
Bg7 {[%clk 0:02:57.9]} 3. g4 {[%clk 0:02:59.1]} 3... d5 {[%clk 0:02:55.9]} 4.
Bg2 {[%clk 0:02:59.7]} 4... e5 {[%clk 0:02:56.1]} 5. c4 {[%clk 0:02:59.8]} 5...
c6 {[%clk 0:02:55.8]} 6. cxd5 {[%clk 0:02:59.9]} 6... cxd5 {[%clk 0:02:56.1]} 7.
d3 {[%clk 0:03:00]} 7... Ne7 {[%clk 0:02:56.3]} 8. Nc3 {[%clk 0:03:00.1]} 8...
Nbc6 {[%clk 0:02:55.8]} 9. Nf3 {[%clk 0:03:00.7]} 9... O-O {[%clk 0:02:54.3]}
10. O-O {[%clk 0:03:01.2]} 10... h6 {[%clk 0:02:53.2]} 11. Qa4 {[%clk
0:02:51.8]} 11... a6 {[%clk 0:02:51.6]} 12. Bd2 {[%clk 0:02:49.7]} 12... b5
{[%clk 0:02:48.7]} 13. Nxb5 {[%clk 0:02:45.2]} 13... axb5 {[%clk 0:02:40.5]} 14.
Qxa8 {[%clk 0:02:45]} 14... Qb6 {[%clk 0:02:39]} 15. a4 {[%clk 0:01:03.2]} 15...
Bb7 {[%clk 0:02:28.4]} 16. a5 {[%clk 0:01:03.4]} 16... Qc7 {[%clk 0:02:22.5]}
17. Qxf8+ {[%clk 0:01:03.3]} 17... Kxf8 {[%clk 0:02:14]} 18. Rfc1 {[%clk
0:01:04.2]} 18... Ba6 {[%clk 0:02:04.9]} 19. Ne1 {[%clk 0:01:02.8]} 19... f5
{[%clk 0:01:52.3]} 20. gxf5 {[%clk 0:01:00.7]} 20... gxf5 {[%clk 0:01:53.2]} 21.
Rc5 {[%clk 0:00:55.8]} 21... e4 {[%clk 0:01:49.5]} 22. dxe4 {[%clk 0:00:46.4]}
22... fxe4 {[%clk 0:01:44.9]} 23. Rb1 {[%clk 0:00:40.1]} 23... Qd6 {[%clk
0:01:39.3]} 24. b4 {[%clk 0:00:40.4]} 24... Nf5 {[%clk 0:01:28.1]} 25. e3 {[%clk
0:00:34]} 25... Nh4 {[%clk 0:01:20.8]} 26. Rbc1 {[%clk 0:00:32.5]} 26... Ne5
{[%clk 0:01:19.6]} 27. Rc8+ {[%clk 0:00:31.7]} 27... Bxc8 {[%clk 0:01:18.6]} 28.
Rxc8+ {[%clk 0:00:32.6]} 28... Ke7 {[%clk 0:01:15.9]} 29. Kf1 {[%clk 0:00:32.5]}
29... Nef3 {[%clk 0:01:07.8]} 30. Bc3 {[%clk 0:00:07]} 30... Bxc3 {[%clk
0:01:04.5]} 31. Rxc3 {[%clk 0:00:07.9]} 31... Nxe1 {[%clk 0:01:04.5]} 32. Kxe1
{[%clk 0:00:07.3]} 32... Qxb4 {[%clk 0:01:03.7]} 33. Kd2 {[%clk 0:00:08.2]}
33... Nxg2 {[%clk 0:01:03.4]} 0-1